bitfinex-derivatives/quotes_BTCF0:USTF0_20241122
["timestamp","ask_amount","ask_price","bid_price","bid_amount"]
[1732284115019,0.3608,97652.0,97631.0,0.051164]
[1732284115203,0.051155,97648.0,97627.0,0.560966]
[1732284115484,0.051164,97632.0,97631.0,0.051164]
[1732284116461,0.3608,97652.0,97627.0,0.5098]
[1732284116657,0.051162,97636.0,97634.0,0.051162]
[1732284116853,4e-05,97628.0,97627.0,0.560966]
[1732284117356,0.051154,97650.0,97627.0,0.5098]
[1732284117564,0.051166,97628.0,97627.0,0.5098]
[1732284118670,0.051166,97628.0,97627.0,0.560966]
[1732284119457,0.051166,97628.0,97627.0,0.36084]
[1732284120676,0.051166,97628.0,97627.0,4e-05]
[1732284122741,0.30728,97627.0,97592.0,0.329584]
[1732284122887,0.3608,97607.0,97593.0,0.3608]
[1732284123184,0.1375,97627.0,97599.0,0.051181]
[1732284123185,0.3608,97621.0,97599.0,0.051181]
[1732284123485,0.051178,97605.0,97593.0,0.3608]
[1732284123867,4e-05,97594.0,97593.0,0.3608]
[1732284124056,4e-05,97594.0,97593.0,0.411984]
[1732284124282,4e-05,97594.0,97593.0,0.3608]
[1732284125178,4e-05,97594.0,97593.0,0.5098]
[1732284126383,4e-05,97594.0,97593.0,0.149]
[1732284127693,4e-05,97594.0,97590.0,0.3608]
[1732284127904,0.051185,97591.0,97590.0,0.3608]
[1732284128147,0.051225,97591.0,97590.0,0.3608]
[1732284129428,4e-05,97591.0,97590.0,0.3608]
[1732284130115,0.051225,97591.0,97590.0,0.3608]
[1732284130882,0.051194,97574.0,97571.0,0.36132]
[1732284131065,0.051194,97574.0,97551.0,0.1367]
[1732284131066,0.051194,97574.0,97562.0,0.14904]
[1732284131277,0.411994,97574.0,97562.0,0.14904]
[1732284131486,0.051194,97574.0,97564.0,0.3608]
[1732284131719,0.15082081,97583.0,97564.0,0.3608]
[1732284131987,4e-05,97574.0,97572.0,0.051195]
[1732284132229,4e-05,97574.0,97573.0,0.36233695]
[1732284132700,4e-05,97574.0,97573.0,0.00153695]
[1732284132781,0.051234,97574.0,97573.0,0.00153695]
[1732284135984,0.051202,97560.0,97546.0,0.14892]
[1732284136183,0.051203,97557.0,97549.0,0.3608]
[1732284136366,4e-05,97547.0,97545.0,0.1]
[1732284136574,4e-05,97547.0,97545.0,0.151209]
[1732284136807,4e-05,97546.0,97545.0,0.151209]
[1732284137278,4e-05,97546.0,97545.0,0.458769]
[1732284137504,0.0052,97582.0,97548.0,0.051207]
[1732284137735,0.28962081,97590.0,97565.0,0.3608]
[1732284137869,0.05119,97582.0,97581.0,4e-05]
[1732284138075,0.1388,97590.0,97581.0,4e-05]
[1732284138314,0.15082081,97600.0,97581.0,4e-05]
[1732284138515,0.1388,97603.0,97589.0,4e-05]
[1732284138780,0.1388,97603.0,97599.0,4e-05]
[1732284138781,0.05118,97600.0,97599.0,4e-05]
[1732284139056,0.051179,97603.0,97600.0,0.05118]
[1732284139190,0.05118,97601.0,97599.0,4e-05]
[1732284139486,4e-05,97600.0,97599.0,4e-05]
[1732284145382,0.3074,97600.0,97570.0,0.3608]
[1732284145584,0.051193,97575.0,97573.0,0.051194]
[1732284145814,4e-05,97571.0,97570.0,0.411996]
[1732284145978,4e-05,97571.0,97570.0,0.051196]
[1732284148196,4e-05,97571.0,97570.0,0.411996]
[1732284149289,4e-05,97571.0,97570.0,0.3608]
[1732284149858,4e-05,97571.0,97568.0,0.2671]
[1732284149992,0.051196,97570.0,97568.0,0.1338]
[1732284150235,4e-05,97569.0,97568.0,0.1338]
[1732284150401,0.051197,97568.0,97566.0,0.14892]
[1732284150829,4e-05,97567.0,97566.0,0.14892]
[1732284151013,4e-05,97567.0,97566.0,0.50972]
[1732284151178,4e-05,97567.0,97560.0,0.00153743]
[1732284151407,4e-05,97567.0,97553.0,0.14896]
[1732284151712,0.3608,97574.0,97552.0,0.2878]
[1732284151713,4e-05,97554.0,97552.0,0.2878]
[1732284152080,4e-05,97553.0,97552.0,0.1452]
[1732284152585,4e-05,97553.0,97552.0,0.506]
[1732284154102,4e-05,97553.0,97552.0,0.81352]
[1732284154584,0.00153782,97588.0,97561.0,0.051201]
[1732284154798,0.051193,97577.0,97562.0,0.134]
[1732284154989,0.00153782,97588.0,97568.0,0.051197]
[1732284155200,0.00153782,97588.0,97569.0,0.411996]
[1732284155657,0.051193,97577.0,97569.0,0.3608]
[1732284155814,0.051193,97577.0,97575.0,0.3608]
[1732284157096,0.00153782,97588.0,97561.0,0.14896]
[1732284157097,0.0512,97563.0,97561.0,0.14896]
[1732284157296,0.3608,97576.0,97550.0,0.3608]
[1732284157488,0.051201,97561.0,97553.0,0.14896]
[1732284157817,4e-05,97562.0,97550.0,0.3608]
[1732284158003,0.051204,97555.0,97554.0,0.14896]
[1732284158783,0.051201,97561.0,97554.0,0.14896]
[1732284159007,4e-05,97562.0,97555.0,0.051204]
[1732284159301,4e-05,97562.0,97560.0,4e-05]
[1732284159564,4e-05,97562.0,97560.0,0.051241]
[1732284159697,4e-05,97562.0,97561.0,0.30748]
[1732284159938,0.14503776,97589.0,97578.0,0.051192]
[1732284159939,0.00153776,97589.0,97578.0,0.051192]
[1732284160105,0.051189,97583.0,97578.0,0.051192]
[1732284160295,0.051189,97583.0,97571.0,0.3608]
[1732284160296,0.00153776,97589.0,97571.0,0.3608]
[1732284160523,0.051195,97572.0,97571.0,0.3608]
[1732284160707,0.051235,97572.0,97571.0,0.3608]
[1732284160887,4e-05,97572.0,97571.0,0.411996]
[1732284161095,4e-05,97572.0,97571.0,0.868436]
[1732284161503,4e-05,97572.0,97571.0,0.560956]
[1732284161794,4e-05,97572.0,97571.0,0.50976]
[1732284162115,4e-05,97572.0,97571.0,0.14896]
[1732284164270,4e-05,97572.0,97571.0,0.45644]
[1732284164297,0.1435,97598.0,97571.0,0.45644]
[1732284164298,0.1435,97598.0,97571.0,0.73574]
[1732284164649,0.1435,97598.0,97581.0,0.3608]
[1732284164734,0.1381,97611.0,97597.0,0.00011999]
[1732284164918,0.1381,97611.0,97600.0,0.05118]
[1732284165210,0.051176,97610.0,97600.0,0.05129999]
[1732284165650,0.4122305,97612.0,97600.0,0.05129999]
[1732284165820,0.051179,97602.0,97600.0,0.05129999]
[1732284166035,0.0527176,97601.0,97600.0,0.00011999]
[1732284170435,0.3088976,97601.0,97581.0,0.154]
[1732284170606,0.3608,97596.0,97581.0,0.154]
[1732284170820,0.05119,97583.0,97581.0,0.154]
[1732284171312,4e-05,97582.0,97581.0,0.20519]
[1732284171823,4e-05,97582.0,97568.0,0.70548]
[1732284171824,4e-05,97582.0,97576.0,0.051193]
[1732284172004,0.36084,97582.0,97568.0,0.3608]
[1732284172308,4e-05,97569.0,97568.0,0.3608]
[1732284172508,4e-05,97569.0,97550.0,0.0015376]
[1732284172716,0.051201,97561.0,97550.0,0.0015376]
[1732284172995,0.051241,97561.0,97550.0,0.0015376]
[1732284173396,0.051206,97551.0,97550.0,0.0015376]
[1732284174401,0.051246,97551.0,97550.0,0.0015376]
[1732284176432,4e-05,97551.0,97550.0,0.0015376]
[1732284178816,4e-05,97551.0,97545.0,0.1]
[1732284179002,0.051209,97546.0,97545.0,0.1]
[1732284179705,0.051249,97546.0,97545.0,0.1]
[1732284180414,4e-05,97546.0,97545.0,0.1]
[1732284182328,0.05124155,97546.0,97545.0,0.151209]
[1732284182509,0.00153807,97569.0,97545.0,0.40756]
[1732284182780,0.00153807,97569.0,97559.0,0.3608]
[1732284182937,0.051206,97552.0,97551.0,0.3608]
[1732284183410,0.051246,97552.0,97551.0,0.3608]
[1732284184337,0.10210454,97552.0,97551.0,0.3608]
[1732284184509,4e-05,97552.0,97551.0,0.412006]
[1732284185030,0.051246,97552.0,97551.0,0.051206]
[1732284185709,0.051208,97547.0,97546.0,0.205248]
[1732284186104,0.051248,97547.0,97546.0,0.15404]
[1732284187015,0.051248,97547.0,97545.0,0.1]
[1732284187016,0.051209,97546.0,97545.0,0.1]
[1732284187531,0.051249,97546.0,97545.0,0.151209]
[1732284188049,0.051249,97546.0,97545.0,0.1]
[1732284188712,0.051249,97546.0,97545.0,0.151209]
[1732284189732,0.0513869,97546.0,97545.0,0.151209]
[1732284190411,0.1025959,97546.0,97545.0,0.1]
[1732284191428,0.1025959,97546.0,97545.0,0.151209]
[1732284191616,0.1025959,97546.0,97545.0,0.1]
[1732284192327,0.051249,97546.0,97545.0,0.1]
[1732284195426,4e-05,97546.0,97545.0,0.1]
[1732284197906,0.051249,97546.0,97545.0,0.1]
[1732284198488,4e-05,97546.0,97545.0,0.1]
[1732284200019,0.3608,97578.0,97547.0,0.051208]
[1732284200320,0.051193,97576.0,97566.0,0.3608]
[1732284200547,0.0052,97593.0,97566.0,0.3608]
[1732284200548,0.05168195,97571.0,97567.0,0.39408]
[1732284200731,0.10232433,97592.0,97585.0,0.051188]
[1732284200965,0.051187,97588.0,97579.0,0.051191]
[1732284201184,0.05113933,97592.0,97576.0,0.15508]
[1732284201363,0.051183,97596.0,97586.0,0.051188]
[1732284201543,0.10241028,97600.0,97591.0,0.05122501]
[1732284201544,0.00161,97600.0,97591.0,0.05122501]
[1732284201871,0.00161,97600.0,97595.0,0.05122301]
[1732284202144,0.00161,97600.0,97598.0,0.051181]
[1732284202315,0.00153746,97620.0,97599.0,0.3074]
[1732284202538,0.00153746,97620.0,97616.0,0.051172]
[1732284202732,0.00153746,97620.0,97619.0,0.05121001]
[1732284203135,0.051162,97636.0,97619.0,0.30736001]
[1732284203487,0.4863,97645.0,97627.0,0.3608]
[1732284203731,0.05116,97639.0,97627.0,0.411966]
[1732284203927,0.05116,97639.0,97629.0,0.051165]
[1732284204110,0.051165,97629.0,97627.0,0.36136]
[1732284204314,0.3608,97628.0,97618.0,0.3608]
[1732284204544,0.36084,97628.0,97600.0,0.1278]
[1732284204744,0.3608,97610.0,97585.0,0.3608]
[1732284205079,4e-05,97596.0,97582.0,0.15504]
[1732284205443,4e-05,97596.0,97584.0,0.051188]
[1732284205614,4e-05,97596.0,97585.0,0.3608]
[1732284205855,4e-05,97596.0,97591.0,0.051185]
[1732284206024,4e-05,97596.0,97594.0,0.051183]
[1732284207070,4e-05,97596.0,97593.0,0.3608]
[1732284207324,4e-05,97596.0,97593.0,0.51584]
[1732284207547,4e-05,97596.0,97593.0,0.00052]
[1732284207760,4e-05,97596.0,97586.0,0.15504]
[1732284207933,4e-05,97596.0,97582.0,0.05119]
[1732284208227,4e-05,97596.0,97575.0,0.3608]
[1732284208896,4e-05,97596.0,97591.0,0.051185]
[1732284209018,4e-05,97596.0,97593.0,0.3608]
[1732284209379,4e-05,97596.0,97595.0,0.20626301]
[1732284209567,4e-05,97596.0,97595.0,0.51366301]
[1732284209899,4e-05,97606.0,97595.0,0.51366301]
[1732284209900,4e-05,97606.0,97605.0,0.051178]
[1732284210003,0.3608,97640.0,97605.0,0.051178]
[1732284210004,0.051163,97634.0,97605.0,0.3608]
[1732284210174,0.051164,97632.0,97626.0,0.051167]
[1732284210533,0.0517492,97638.0,97626.0,0.051167]
[1732284210722,0.1029102,97638.0,97620.0,0.15092126]
[1732284210927,0.05269717,97638.0,97637.0,0.00012001]
[1732284213233,0.00153717,97638.0,97637.0,0.00012001]
[1732284213458,0.00153717,97638.0,97637.0,0.15512001]
[1732284213764,0.366,97674.0,97637.0,0.46236001]
[1732284213918,0.051151,97656.0,97647.0,0.3608]
[1732284214122,0.051151,97656.0,97637.0,0.15512001]
[1732284214123,0.051151,97656.0,97653.0,0.051152]
[1732284214528,0.4122224,97663.0,97653.0,0.051152]
[1732284214771,0.41098239,97663.0,97645.0,0.411956]
[1732284214984,0.41098239,97663.0,97645.0,0.3608]
[1732284215189,0.46213039,97663.0,97645.0,0.3608]
[1732284215449,0.3608,97674.0,97650.0,0.15092126]
[1732284215836,0.05114,97677.0,97671.0,0.051143]
[1732284215854,0.00153632,97683.0,97663.0,0.3608]
[1732284215855,0.05276215,97683.0,97673.0,0.05126201]
[1732284216149,0.05276215,97683.0,97663.0,0.3608]
[1732284216150,0.10389915,97683.0,97682.0,0.00012001]
[1732284216444,0.051153,97652.0,97647.0,0.155]
[1732284216865,4e-05,97648.0,97647.0,0.155]
[1732284217104,0.051158,97643.0,97639.0,0.34396]
[1732284217281,0.051158,97643.0,97642.0,0.15496]
[1732284219131,0.051154,97651.0,97642.0,0.15496]
[1732284219709,0.051156,97647.0,97642.0,0.15496]
[1732284219975,0.051151,97657.0,97642.0,0.15496]
[1732284220117,0.051152,97655.0,97642.0,0.15496]
[1732284220276,0.051152,97655.0,97644.0,0.3608]
[1732284220535,0.051152,97655.0,97645.0,0.15496]
[1732284221505,0.3608,97663.0,97652.0,0.3608]
[1732284221667,0.051141,97675.0,97662.0,0.3608]
[1732284221996,0.36212,97682.0,97662.0,0.36084]
[1732284222006,0.051138,97681.0,97663.0,0.179047]
[1732284222170,0.051138,97681.0,97664.0,0.15496]
[1732284222665,0.051138,97681.0,97665.0,0.051146]
[1732284223224,0.051139,97680.0,97665.0,0.051146]
[1732284223997,0.4117729,97682.0,97664.0,0.15496]
[1732284224005,0.051134,97689.0,97676.0,0.05114]
[1732284224015,0.2524,97707.0,97681.0,4e-05]
[1732284224253,0.1239,97707.0,97681.0,4e-05]
[1732284224456,0.051132,97692.0,97682.0,0.00319517]
[1732284224836,0.051134,97689.0,97683.0,0.00319517]
[1732284224845,0.051135,97688.0,97684.0,0.00319517]
[1732284225048,0.04997544,97694.0,97684.0,0.00319517]
[1732284225244,0.051136,97686.0,97684.0,0.00319517]
[1732284225852,0.051136,97686.0,97685.0,0.00319517]
[1732284226209,0.051136,97686.0,97685.0,0.00323517]
[1732284227232,0.04997544,97694.0,97685.0,0.00323517]
[1732284227457,0.04997544,97694.0,97685.0,4e-05]
[1732284227751,0.04997544,97694.0,97681.0,4e-05]
[1732284227752,0.051132,97692.0,97686.0,0.00323527]
[1732284227955,0.04997544,97694.0,97686.0,0.00323527]
[1732284228145,0.051134,97689.0,97686.0,0.00323527]
[1732284228367,0.04997544,97694.0,97686.0,0.00323527]
[1732284228847,0.051132,97692.0,97686.0,0.00323527]
[1732284229710,0.04997544,97694.0,97686.0,0.36403527]
[1732284230354,0.04997544,97694.0,97686.0,0.36084]
[1732284230470,0.3608,97703.0,97686.0,0.36403501]
[1732284230668,0.09065284,97723.0,97686.0,0.67115501]
[1732284230859,0.1198,97723.0,97699.0,0.051128]
[1732284231075,0.051121,97714.0,97699.0,0.05432278]
[1732284231373,0.051118,97719.0,97710.0,0.051123]
[1732284231977,0.051114,97727.0,97718.0,4e-05]
[1732284231987,0.3608,97730.0,97718.0,4e-05]
[1732284232174,0.411912,97730.0,97729.0,4e-05]
[1732284232345,0.411912,97730.0,97717.0,0.3608]
[1732284232561,0.051114,97728.0,97723.0,0.051116]
[1732284232740,0.051115,97725.0,97723.0,0.051116]
[1732284232968,0.3608,97730.0,97717.0,0.3608]
[1732284233250,0.051113,97729.0,97724.0,0.051115]
[1732284233560,0.051115,97726.0,97724.0,0.051115]
[1732284234242,0.3608,97730.0,97725.0,0.051114]
[1732284234473,0.3608,97730.0,97717.0,0.3608]
[1732284234657,0.051119,97718.0,97716.0,0.15528]
[1732284234944,0.051119,97718.0,97699.0,0.3608]
[1732284234945,0.051122,97712.0,97699.0,0.3608]
[1732284235250,0.051123,97710.0,97707.0,0.051124]
[1732284235335,4e-05,97718.0,97688.0,0.00959462]
[1732284235336,4e-05,97700.0,97688.0,0.00959462]
[1732284235689,4e-05,97700.0,97669.0,0.051144]
[1732284235690,0.051129,97699.0,97665.0,0.17158892]
[1732284235917,0.3608,97694.0,97675.0,0.15524]
[1732284236179,0.051177,97682.0,97674.0,0.15524]
[1732284236740,0.051177,97682.0,97677.0,0.001]
[1732284237115,0.66796,97682.0,97644.0,0.3608]
[1732284237286,0.772746,97665.0,97633.0,0.3608]
[1732284237477,0.77282601,97665.0,97633.0,0.3608]
[1732284237768,0.05116,97640.0,97638.0,0.05116]
[1732284240644,0.051158,97644.0,97642.0,0.051158]
[1732284240899,0.051158,97644.0,97636.0,0.3608]
[1732284240900,0.051161,97638.0,97636.0,0.3608]
[1732284241562,0.3608,97647.0,97634.0,0.15524]
[1732284241838,8.001e-05,97635.0,97634.0,0.15524]
[1732284243588,8.001e-05,97635.0,97631.0,0.15524]
[1732284243867,8.001e-05,97632.0,97631.0,0.15524]
[1732284244304,8.001e-05,97632.0,97631.0,0.206404]
[1732284245747,8.001e-05,97632.0,97631.0,0.15528]
[1732284248772,8.001e-05,97632.0,97630.0,0.3608]
[1732284249130,8.001e-05,97632.0,97631.0,0.30728]
[1732284249273,0.05176283,97653.0,97631.0,0.46256]
[1732284249479,0.051156,97647.0,97641.0,0.051159]
[1732284249731,0.051153,97653.0,97640.0,0.3608]
[1732284249933,0.051153,97653.0,97640.0,0.51172126]
[1732284250059,0.051151,97657.0,97650.0,0.051154]
[1732284250310,0.41130457,97667.0,97641.0,0.28527462]
[1732284250584,0.05115,97657.0,97656.0,4e-05]
[1732284251648,0.35835,97657.0,97656.0,4e-05]
[1732284251997,0.051165,97639.0,97638.0,0.00959462]
[1732284252346,0.051165,97639.0,97637.0,0.206446]
[1732284252540,0.051164,97642.0,97638.0,0.051165]
[1732284252846,0.3608,97659.0,97641.0,4e-05]
[1732284253063,0.051155,97658.0,97652.0,0.051158]
[1732284253285,0.3608,97659.0,97642.0,0.15528]
[1732284253456,0.3608,97659.0,97649.0,0.15092126]
[1732284253759,0.3608,97659.0,97655.0,0.051156]
[1732284253950,0.3608,97659.0,97643.0,0.00959462]
[1732284254152,0.3608,97659.0,97657.0,0.051156]
[1732284255256,0.051147,97673.0,97668.0,0.05115]
[1732284255471,0.051146,97676.0,97668.0,0.05115]
[1732284255766,0.3608,97679.0,97677.0,0.051145]
[1732284256248,0.3608,97679.0,97678.0,0.00963462]
[1732284256456,0.3608,97679.0,97678.0,4e-05]
[1732284259061,0.3608,97679.0,97678.0,0.15382366]
[1732284259754,0.3608,97679.0,97678.0,0.38652025]
[1732284261181,0.051144,97680.0,97678.0,0.38652025]
[1732284261435,0.051144,97680.0,97679.0,0.051144]
[1732284261715,0.051142,97684.0,97681.0,0.051143]
[1732284261986,0.01922639,97684.0,97681.0,0.00319556]
[1732284261991,0.48584001,97701.0,97682.0,0.00319556]
[1732284262247,0.48584001,97701.0,97678.0,0.38704025]
[1732284262248,0.051139,97688.0,97687.0,0.051138]
[1732284262678,0.051134,97699.0,97692.0,0.051137]
[1732284262895,0.00124001,97701.0,97700.0,0.051133]
[1732284263135,0.05113,97706.0,97700.0,0.06396318]
[1732284263334,0.0763169,97717.0,97701.0,2.47038947]
[1732284263533,0.05113,97706.0,97704.0,0.3608]
[1732284263698,0.05113,97706.0,97705.0,0.00959462]
[1732284264092,0.051132,97703.0,97701.0,2.35243375]
[1732284264294,0.051132,97703.0,97702.0,0.00958471]
[1732284264569,0.051132,97703.0,97701.0,2.35243375]
[1732284264674,0.051132,97703.0,97702.0,0.00319488]
[1732284264884,0.351132,97703.0,97701.0,2.19873009]
[1732284265079,0.91224,97702.0,97701.0,2.14062609]
[1732284265361,0.91232001,97702.0,97701.0,1.69920236]
[1732284265628,1.21232001,97702.0,97701.0,0.52477278]
[1732284265809,1.21232001,97702.0,97701.0,0.46858478]
[1732284266124,1.21232001,97702.0,97701.0,0.10646489]
[1732284266931,1.21232001,97702.0,97701.0,0.05294589]
[1732284267168,1.36556001,97702.0,97701.0,0.05294589]
[1732284267545,1.41541413,97702.0,97668.0,0.3608]
[1732284267782,0.3608,97673.0,97661.0,0.051153]
[1732284267928,0.051152,97663.0,97662.0,0.00958759]
[1732284268301,0.051155,97659.0,97658.0,0.00958759]
[1732284268310,0.051155,97659.0,97657.0,0.3608]
[1732284268703,0.05123501,97659.0,97657.0,0.3608]
[1732284269096,8.001e-05,97659.0,97658.0,0.00958759]
[1732284269515,0.051154,97661.0,97658.0,0.00958759]
[1732284269582,0.09100564,97670.0,97658.0,0.00958759]
[1732284269883,0.051153,97662.0,97657.0,0.3608]
[1732284270278,0.09100564,97670.0,97657.0,0.3608]
[1732284270478,0.05115,97667.0,97657.0,0.411955]
[1732284270686,0.09100564,97670.0,97666.0,0.3608]
[1732284270976,0.051149,97671.0,97666.0,0.3608]
[1732284271166,0.051149,97671.0,97664.0,0.051152]
[1732284271360,0.051149,97671.0,97665.0,0.3608]
[1732284271670,0.051143,97681.0,97672.0,0.051147]
[1732284271863,0.05114,97688.0,97672.0,0.051147]
[1732284272091,0.051145,97678.0,97676.0,0.3608]
[1732284272664,0.051143,97682.0,97676.0,0.3608]
[1732284272873,0.05284088,97689.0,97677.0,0.1223]
[1732284273060,0.051142,97682.0,97681.0,4e-05]
[1732284276322,0.358262,97682.0,97681.0,4e-05]
[1732284277774,0.051142,97682.0,97681.0,4e-05]
[1732284279264,0.051142,97682.0,97681.0,0.14004]
[1732284283578,0.358262,97682.0,97681.0,0.14004]
[1732284283778,0.05115,97667.0,97652.0,0.00153599]
[1732284284071,0.051157,97655.0,97654.0,0.256]
[1732284284291,0.051157,97655.0,97654.0,0.13]
[1732284285932,0.10301946,97655.0,97654.0,0.13]
[1732284286101,0.051157,97655.0,97654.0,0.13]
[1732284287186,0.3608,97673.0,97654.0,0.13]
[1732284287483,0.051152,97664.0,97660.0,0.051154]
[1732284287685,0.051152,97664.0,97662.0,0.051153]
[1732284287988,0.051152,97664.0,97662.0,0.15]
[1732284289181,0.10183766,97664.0,97662.0,0.15]
[1732284290379,0.10183766,97664.0,97662.0,0.201153]
[1732284290591,0.36204001,97674.0,97663.0,0.051152]
[1732284290887,0.051156,97657.0,97656.0,0.051156]
[1732284291076,0.051156,97657.0,97656.0,0.12]
[1732284291279,0.05127601,97657.0,97656.0,0.12]
[1732284292778,0.10189788,97657.0,97656.0,0.12]
[1732284293604,0.05127601,97657.0,97656.0,0.12]
[1732284297280,0.71927601,97657.0,97656.0,0.12]
[1732284298080,0.7700462,97657.0,97656.0,0.12]
[1732284298718,0.4628462,97657.0,97656.0,0.12]
[1732284298923,0.1020462,97657.0,97656.0,0.12]
[1732284299306,0.4628462,97657.0,97656.0,0.12]
[1732284300406,0.1020462,97657.0,97656.0,0.12]
[1732284303602,0.00153651,97677.0,97656.0,0.4808]
[1732284303895,0.05268151,97677.0,97676.0,0.36084]
[1732284304187,0.05268151,97677.0,97676.0,0.51084]
[1732284304188,0.10422142,97677.0,97676.0,0.51084]
[1732284304623,0.05307642,97677.0,97676.0,0.51084]
[1732284304790,0.09099936,97700.0,97676.0,0.87164]
[1732284305086,0.09099936,97700.0,97699.0,0.36084]
[1732284305087,0.052053,97700.0,97699.0,0.36084]
[1732284305390,0.051133,97700.0,97699.0,0.51084]
[1732284305605,0.10118456,97700.0,97699.0,0.51084]
[1732284305990,0.09099936,97718.0,97700.0,0.051133]
[1732284306356,0.00096001,97720.0,97711.0,0.3608]
[1732284306357,0.051127,97712.0,97711.0,0.3608]
[1732284306599,0.051127,97712.0,97711.0,0.3700411]
[1732284308218,0.051127,97712.0,97711.0,0.01]
[1732284308493,0.051133,97701.0,97700.0,0.2344]
[1732284308678,0.51150045,97721.0,97700.0,0.3644]
[1732284308876,0.051129,97708.0,97707.0,0.3608]
[1732284309077,0.05237123,97721.0,97707.0,0.51399493]
[1732284309290,0.051128,97709.0,97708.0,0.00319493]
[1732284309604,0.051128,97709.0,97708.0,0.15319493]
[1732284310301,0.15070045,97720.0,97708.0,0.15319493]
[1732284310502,0.051124,97717.0,97716.0,0.3608]
[1732284310834,0.051124,97717.0,97716.0,0.51399493]
[1732284311002,0.051124,97717.0,97716.0,0.36399493]
[1732284311201,0.30704,97716.0,97699.0,0.3608]
[1732284311430,0.051139,97690.0,97688.0,0.3608]
[1732284311719,0.149,97708.0,97688.0,0.4808]
[1732284311969,0.051139,97689.0,97688.0,0.4808]
[1732284312737,0.051136,97694.0,97688.0,0.4808]
[1732284312893,0.051137,97693.0,97688.0,0.4808]
[1732284313106,0.051139,97689.0,97688.0,0.4808]
[1732284314128,0.051135,97696.0,97693.0,0.051136]
[1732284314322,0.41161034,97703.0,97693.0,0.12]
[1732284314571,0.051136,97694.0,97693.0,0.12]
[1732284314919,0.358216,97694.0,97693.0,0.12]
[1732284315161,0.051136,97694.0,97693.0,0.12]
[1732284316730,0.05081034,97703.0,97695.0,0.051135]
[1732284316990,0.051133,97700.0,97699.0,0.3608]
[1732284317307,0.051133,97700.0,97699.0,0.4808]
[1732284318060,0.10260786,97700.0,97699.0,0.4808]
[1732284318314,0.051133,97700.0,97699.0,0.4808]
[1732284319999,0.1011346,97700.0,97699.0,0.4808]
[1732284320195,0.0500016,97700.0,97699.0,0.4808]
[1732284320505,0.3608,97719.0,97699.0,0.4808]
[1732284320924,0.41237613,97719.0,97707.0,0.3608]
[1732284321237,0.051129,97709.0,97707.0,0.5108]
[1732284321933,0.051129,97709.0,97707.0,0.15]
[1732284323402,0.051129,97709.0,97708.0,0.00319509]
[1732284323621,0.051129,97709.0,97708.0,0.13319509]
[1732284324002,0.10232684,97709.0,97708.0,0.13319509]
[1732284324325,0.10232684,97709.0,97708.0,0.13]
[1732284324535,0.10232684,97709.0,97708.0,0.4908]
[1732284324812,0.05119784,97709.0,97708.0,0.4908]
[1732284325110,0.051124,97717.0,97709.0,0.051128]
[1732284325426,0.051124,97717.0,97716.0,0.3608]
[1732284325599,0.051124,97717.0,97716.0,0.4908]
[1732284325810,0.00153578,97720.0,97718.0,0.051124]
[1732284326023,0.05186752,97728.0,97718.0,0.15]
[1732284326273,0.051113,97738.0,97732.0,0.051116]
[1732284326407,0.051113,97738.0,97737.0,0.3608]
[1732284326673,0.051113,97738.0,97737.0,0.5108]
[1732284327853,0.41082887,97754.0,97737.0,0.5108]
[1732284328153,0.00153519,97758.0,97737.0,0.5108]
[1732284328358,0.051108,97748.0,97744.0,0.05111]
[1732284328612,0.051108,97748.0,97745.0,0.051109]
[1732284328768,0.051108,97748.0,97745.0,0.15]
[1732284328993,0.00153519,97758.0,97752.0,0.051106]
[1732284329160,0.051104,97756.0,97755.0,0.3608]
[1732284329366,0.051104,97756.0,97755.0,0.5108]
[1732284330615,0.051104,97756.0,97755.0,0.561904]
[1732284330820,0.051104,97756.0,97755.0,0.5108]
[1732284331545,0.10138332,97756.0,97755.0,0.5108]
[1732284332246,0.05027932,97756.0,97755.0,0.561904]
[1732284332465,0.00088001,97776.0,97755.0,0.5108]
[1732284332624,0.051097,97770.0,97769.0,0.051097]
[1732284332860,0.051093,97777.0,97769.0,0.15]
[1732284333137,0.00153477,97780.0,97779.0,0.051092]
[1732284333359,0.00153477,97780.0,97779.0,0.561892]
[1732284333512,0.00153477,97780.0,97779.0,0.561932]
[1732284335538,0.051091,97781.0,97779.0,0.15004]
[1732284335814,0.051096,97772.0,97770.0,0.051096]
[1732284336070,0.051096,97772.0,97770.0,0.171096]
[1732284336227,4e-05,97771.0,97770.0,0.171096]
[1732284336432,4e-05,97771.0,97770.0,0.12]
[1732284337131,0.04994254,97771.0,97770.0,0.12]
[1732284337318,0.30688,97771.0,97770.0,0.12]
[1732284337531,0.051105,97754.0,97753.0,0.1154]
[1732284337726,0.051105,97754.0,97753.0,0.1754]
[1732284337928,0.051145,97754.0,97753.0,0.1754]
[1732284338806,4e-05,97754.0,97753.0,0.1754]
[1732284340005,4e-05,97754.0,97753.0,0.226505]
[1732284340717,0.3608,97776.0,97753.0,0.226505]
[1732284340725,0.00088001,97788.0,97771.0,0.3608]
[1732284340981,0.051089,97784.0,97783.0,0.3608]
[1732284341113,0.051089,97784.0,97783.0,0.5108]
[1732284341818,0.051089,97784.0,97783.0,0.56189]
[1732284342219,0.051089,97784.0,97783.0,0.5108]
[1732284342420,0.14162695,97793.0,97783.0,0.5108]
[1732284342620,0.051085,97793.0,97783.0,0.68679]
[1732284342912,0.051085,97793.0,97792.0,4e-05]
[1732284343120,0.051085,97793.0,97792.0,0.15004]
[1732284344515,0.14152966,97793.0,97792.0,0.15004]
[1732284344722,0.17242585,97793.0,97792.0,0.15004]
[1732284344922,0.051093,97776.0,97775.0,4e-05]
[1732284345117,0.051093,97776.0,97775.0,0.10004]
[1732284345717,0.0904411,97783.0,97775.0,0.10004]